[Event "*** Titled Tuesday Blitz"]
[Site "Chess.com"]
[Date "2020.04.28"]
[Round "9"]
[White "NemtsevIgor"]
[Black "Sjakkerntobi"]
[Result "0-1"]
[WhiteElo "2351"]
[BlackElo "2215"]
[TimeControl "180+1"]
[EndTime "11:45:08 PDT"]
[Termination "Sjakkerntobi won by resignation"]

1. d4 {[%clk 0:03:00.9]} 1... Nf6 {[%clk 0:02:59.4]} 2. Bf4 {[%clk 0:03:00.5]}
2... e6 {[%clk 0:02:58.9]} 3. e3 {[%clk 0:03:00.5]} 3... d5 {[%clk 0:02:59]} 4.
Nf3 {[%clk 0:03:00.5]} 4... Bd6 {[%clk 0:02:59.6]} 5. Bg3 {[%clk 0:03:00.3]}
5... O-O {[%clk 0:03:00.2]} 6. Nbd2 {[%clk 0:03:00]} 6... c5 {[%clk 0:03:00.8]}
7. c3 {[%clk 0:02:59.6]} 7... Nc6 {[%clk 0:03:00.9]} 8. Bd3 {[%clk 0:02:58.1]}
8... b6 {[%clk 0:03:01.2]} 9. Qe2 {[%clk 0:02:57.2]} 9... Bb7 {[%clk 0:03:00.7]}
10. Rd1 {[%clk 0:02:56.9]} 10... Ne7 {[%clk 0:02:54.4]} 11. Bxd6 {[%clk
0:02:55.1]} 11... Qxd6 {[%clk 0:02:54.4]} 12. Ne5 {[%clk 0:02:55.1]} 12... Nf5
{[%clk 0:02:52.4]} 13. g4 {[%clk 0:02:45.7]} 13... Nh4 {[%clk 0:02:47.5]} 14. f4
{[%clk 0:02:41.5]} 14... Ne4 {[%clk 0:02:43.8]} 15. Bxe4 {[%clk 0:02:18.8]}
15... dxe4 {[%clk 0:02:42.9]} 16. Qf2 {[%clk 0:02:19]} 16... Nf3+ {[%clk
0:02:36.4]} 17. Ndxf3 {[%clk 0:01:50.2]} 17... exf3 {[%clk 0:02:37.3]} 18. dxc5
{[%clk 0:01:31.9]} 18... Qxc5 {[%clk 0:02:22]} 19. Nd7 {[%clk 0:01:32]} 19...
Qb5 {[%clk 0:02:21.6]} 20. Nxf8 {[%clk 0:01:31.1]} 20... Rxf8 {[%clk 0:02:22.5]}
21. b3 {[%clk 0:01:26.2]} 21... a5 {[%clk 0:02:19.1]} 22. c4 {[%clk 0:01:26.4]}
22... Qb4+ {[%clk 0:02:13.9]} 23. Kf1 {[%clk 0:01:14.5]} 23... a4 {[%clk
0:02:11.9]} 24. Qd2 {[%clk 0:01:13.2]} 24... Qxd2 {[%clk 0:01:35.4]} 25. Rxd2
{[%clk 0:01:13]} 25... f2 {[%clk 0:01:36.3]} 26. Kxf2 {[%clk 0:00:50.4]} 26...
Bxh1 {[%clk 0:01:34.8]} 27. Rd6 {[%clk 0:00:50.4]} 27... axb3 {[%clk 0:01:30.5]}
28. axb3 {[%clk 0:00:49.7]} 28... Rb8 {[%clk 0:01:30.4]} 29. f5 {[%clk
0:00:46.7]} 29... exf5 {[%clk 0:01:28.4]} 30. gxf5 {[%clk 0:00:46.9]} 30... Kf8
{[%clk 0:01:29]} 31. Kg3 {[%clk 0:00:45.7]} 31... Ke7 {[%clk 0:01:28.1]} 32. Rd2
{[%clk 0:00:45]} 32... Bc6 {[%clk 0:01:26.8]} 33. Kf4 {[%clk 0:00:44.8]} 33...
f6 {[%clk 0:01:25.5]} 34. e4 {[%clk 0:00:45]} 34... Rd8 {[%clk 0:01:23.1]} 35.
Rxd8 {[%clk 0:00:40.1]} 35... Kxd8 {[%clk 0:01:24]} 36. e5 {[%clk 0:00:40.7]}
36... fxe5+ {[%clk 0:01:23.8]} 37. Kxe5 {[%clk 0:00:41.1]} 37... Ke7 {[%clk
0:01:24.7]} 38. b4 {[%clk 0:00:40.1]} 38... Bb7 {[%clk 0:01:23.7]} 39. c5 {[%clk
0:00:39.3]} 39... bxc5 {[%clk 0:01:24.6]} 40. bxc5 {[%clk 0:00:39.7]} 40... Bc6
{[%clk 0:01:25.5]} 41. h4 {[%clk 0:00:38.6]} 41... h5 {[%clk 0:01:23.2]} 42. Kf4
{[%clk 0:00:26.4]} 42... Kf6 {[%clk 0:01:23]} 43. Kg3 {[%clk 0:00:26.4]} 43...
Kxf5 {[%clk 0:01:23.3]} 0-1

[Event "*** Titled Tuesday Blitz"]
[Site "Chess.com"]
[Date "2020.04.28"]
[Round "9"]
[White "Azatic"]
[Black "MergenKakabaev"]
[Result "0-1"]
[WhiteElo "2630"]
[BlackElo "2466"]
[TimeControl "180+1"]
[EndTime "11:45:10 PDT"]
[Termination "MergenKakabaev won by checkmate"]

1. d4 {[%clk 0:03:00.9]} 1... d5 {[%clk 0:02:58.5]} 2. c4 {[%clk 0:03:01.1]}
2... c6 {[%clk 0:02:58.8]} 3. cxd5 {[%clk 0:03:00.6]} 3... cxd5 {[%clk
0:02:58.5]} 4. Nf3 {[%clk 0:03:01.5]} 4... Nf6 {[%clk 0:02:58.3]} 5. Bf4 {[%clk
0:03:01.4]} 5... Nc6 {[%clk 0:02:58.6]} 6. Nc3 {[%clk 0:03:00.8]} 6... e6 {[%clk
0:02:59]} 7. e3 {[%clk 0:03:00.7]} 7... Bd6 {[%clk 0:02:59.4]} 8. Bg3 {[%clk
0:02:56]} 8... Bxg3 {[%clk 0:02:58.8]} 9. hxg3 {[%clk 0:02:56.9]} 9... Bd7
{[%clk 0:02:58]} 10. Bd3 {[%clk 0:02:56.1]} 10... Nb4 {[%clk 0:02:58.2]} 11. Bb1
{[%clk 0:02:55.7]} 11... Qb6 {[%clk 0:02:58.8]} 12. O-O {[%clk 0:02:54.1]} 12...
Rc8 {[%clk 0:02:58.1]} 13. a3 {[%clk 0:02:53.4]} 13... Nc6 {[%clk 0:02:57.2]}
14. Qe2 {[%clk 0:02:48.6]} 14... O-O {[%clk 0:02:55.5]} 15. Bd3 {[%clk
0:02:42.8]} 15... Rfd8 {[%clk 0:02:55.1]} 16. Rfc1 {[%clk 0:02:40.6]} 16... Na5
{[%clk 0:02:53.8]} 17. Rab1 {[%clk 0:02:31.1]} 17... Nb3 {[%clk 0:02:51.6]} 18.
Rc2 {[%clk 0:02:31.1]} 18... Be8 {[%clk 0:02:51.6]} 19. Ne5 {[%clk 0:02:30.3]}
19... Rc7 {[%clk 0:02:51.3]} 20. g4 {[%clk 0:02:10.5]} 20... Rdc8 {[%clk
0:02:50.6]} 21. g5 {[%clk 0:02:09.1]} 21... Nd7 {[%clk 0:02:50.6]} 22. Nxd7
{[%clk 0:02:03]} 22... Bxd7 {[%clk 0:02:47.7]} 23. Qh5 {[%clk 0:01:51.6]} 23...
g6 {[%clk 0:02:47.1]} 24. Qe2 {[%clk 0:01:51.2]} 24... a6 {[%clk 0:02:40.1]} 25.
g3 {[%clk 0:01:45.8]} 25... Qd6 {[%clk 0:02:29.6]} 26. Na2 {[%clk 0:01:39.6]}
26... b5 {[%clk 0:02:24.2]} 27. Kg2 {[%clk 0:01:21.4]} 27... Qb6 {[%clk
0:02:13.6]} 28. Rxc7 {[%clk 0:01:17.3]} 28... Rxc7 {[%clk 0:02:14.5]} 29. Bc2
{[%clk 0:01:15.5]} 29... Na5 {[%clk 0:02:12.6]} 30. Rc1 {[%clk 0:01:08.7]} 30...
Nc4 {[%clk 0:02:11.3]} 31. Bb3 {[%clk 0:01:06.3]} 31... a5 {[%clk 0:02:10.6]}
32. Bxc4 {[%clk 0:01:04.8]} 32... bxc4 {[%clk 0:02:09.1]} 33. Rh1 {[%clk
0:01:02.7]} 33... e5 {[%clk 0:01:56.3]} 34. Nc3 {[%clk 0:00:57.7]} 34... exd4
{[%clk 0:01:53.3]} 35. exd4 {[%clk 0:00:55.8]} 35... Qxd4 {[%clk 0:01:51.1]} 36.
Qf3 {[%clk 0:00:48.6]} 36... Bc6 {[%clk 0:01:47.7]} 37. Ne2 {[%clk 0:00:40.8]}
37... Qxb2 {[%clk 0:01:43.5]} 38. Qf4 {[%clk 0:00:36.7]} 38... d4+ {[%clk
0:01:36.3]} 39. f3 {[%clk 0:00:22.9]} 39... Qxe2+ {[%clk 0:01:34.9]} 40. Kg1
{[%clk 0:00:20.2]} 40... Qxf3 {[%clk 0:01:30.4]} 41. Qxc7 {[%clk 0:00:15.3]}
41... Qg2# {[%clk 0:01:29.8]} 0-1

[Event "*** Titled Tuesday Blitz"]
[Site "Chess.com"]
[Date "2020.04.28"]
[Round "9"]
[White "giantslayer83"]
[Black "etserga"]
[Result "1-0"]
[WhiteElo "2683"]
[BlackElo "2459"]
[TimeControl "180+1"]
[EndTime "11:45:12 PDT"]
[Termination "giantslayer83 won by resignation"]

1. d4 {[%clk 0:03:00.9]} 1... d5 {[%clk 0:02:56.9]} 2. c4 {[%clk 0:02:59.4]}
2... c6 {[%clk 0:02:56.2]} 3. Nf3 {[%clk 0:02:59]} 3... Nf6 {[%clk 0:02:56]} 4.
e3 {[%clk 0:02:58.5]} 4... a6 {[%clk 0:02:55.4]} 5. b3 {[%clk 0:02:51.4]} 5...
Bg4 {[%clk 0:02:52.3]} 6. Bd3 {[%clk 0:02:50.9]} 6... e6 {[%clk 0:02:51.3]} 7.
O-O {[%clk 0:02:49.8]} 7... Nbd7 {[%clk 0:02:50.9]} 8. Nbd2 {[%clk 0:02:49]}
8... Bd6 {[%clk 0:02:45.8]} 9. h3 {[%clk 0:02:44.3]} 9... Bh5 {[%clk 0:02:44.9]}
10. Bb2 {[%clk 0:02:41.3]} 10... O-O {[%clk 0:02:43.7]} 11. Qc2 {[%clk
0:02:41.5]} 11... Qb8 {[%clk 0:02:43.1]} 12. g4 {[%clk 0:01:59.5]} 12... Bg6
{[%clk 0:02:41.5]} 13. Bxg6 {[%clk 0:01:59]} 13... fxg6 {[%clk 0:02:37.8]} 14.
Ng5 {[%clk 0:01:55.1]} 14... Re8 {[%clk 0:02:33.4]} 15. f4 {[%clk 0:01:53.9]}
15... c5 {[%clk 0:02:28.7]} 16. Rae1 {[%clk 0:01:34.7]} 16... cxd4 {[%clk
0:02:25.6]} 17. Bxd4 {[%clk 0:01:28.1]} 17... e5 {[%clk 0:02:24.9]} 18. fxe5
{[%clk 0:01:27.1]} 18... Bxe5 {[%clk 0:02:24.4]} 19. Ndf3 {[%clk 0:01:21.5]}
19... Bxd4 {[%clk 0:02:16.4]} 20. exd4 {[%clk 0:01:22.4]} 20... Ne4 {[%clk
0:02:06.8]} 21. Nxe4 {[%clk 0:01:15.7]} 21... dxe4 {[%clk 0:02:05.9]} 22. Ng5
{[%clk 0:01:12.8]} 22... e3 {[%clk 0:02:00.6]} 23. Rf3 {[%clk 0:01:12.2]} 23...
Nf6 {[%clk 0:01:56.1]} 24. d5 {[%clk 0:01:06.6]} 24... Qa7 {[%clk 0:01:46.8]}
25. Ne6 {[%clk 0:01:05.3]} 25... b5 {[%clk 0:01:43.9]} 26. Kg2 {[%clk
0:01:03.9]} 26... Rac8 {[%clk 0:01:41.8]} 27. Qd3 {[%clk 0:01:03.5]} 27... Qb6
{[%clk 0:01:35.2]} 28. Rfxe3 {[%clk 0:00:52]} 28... bxc4 {[%clk 0:01:31.3]} 29.
bxc4 {[%clk 0:00:52.9]} 29... Nd7 {[%clk 0:01:29]} 30. Qb3 {[%clk 0:00:43.5]}
30... Qa5 {[%clk 0:01:23.9]} 31. Qb2 {[%clk 0:00:38.1]} 31... Nf6 {[%clk
0:01:15.9]} 32. Qb7 {[%clk 0:00:37.4]} 32... Qd2+ {[%clk 0:00:55]} 33. R1e2
{[%clk 0:00:36.9]} 1-0

[Event "*** Titled Tuesday Blitz"]
[Site "Chess.com"]
[Date "2020.04.28"]
[Round "9"]
[White "Volovier"]
[Black "Sethu0025"]
[Result "1/2-1/2"]
[WhiteElo "2634"]
[BlackElo "2816"]
[TimeControl "180+1"]
[EndTime "11:45:17 PDT"]
[Termination "Game drawn - insufficient material"]

1. d4 {[%clk 0:03:00.9]} 1... d6 {[%clk 0:02:59.5]} 2. c4 {[%clk 0:03:00.7]}
2... e5 {[%clk 0:02:59.6]} 3. d5 {[%clk 0:03:00.3]} 3... Be7 {[%clk 0:02:57.7]}
4. Nc3 {[%clk 0:03:00.4]} 4... Bg5 {[%clk 0:02:57.6]} 5. e4 {[%clk 0:02:57.6]}
5... Bxc1 {[%clk 0:02:52.9]} 6. Rxc1 {[%clk 0:02:58.5]} 6... Ne7 {[%clk
0:02:53.3]} 7. Nf3 {[%clk 0:02:56.9]} 7... O-O {[%clk 0:02:53.9]} 8. Bd3 {[%clk
0:02:56.4]} 8... a5 {[%clk 0:02:53.9]} 9. O-O {[%clk 0:02:53.1]} 9... Na6 {[%clk
0:02:54]} 10. a3 {[%clk 0:02:51.1]} 10... Nc5 {[%clk 0:02:53.9]} 11. b4 {[%clk
0:02:47.7]} 11... Nxd3 {[%clk 0:02:53.1]} 12. Qxd3 {[%clk 0:02:48.6]} 12... f5
{[%clk 0:02:53.2]} 13. c5 {[%clk 0:02:43.1]} 13... axb4 {[%clk 0:02:51.4]} 14.
axb4 {[%clk 0:02:41.8]} 14... Ng6 {[%clk 0:02:50.9]} 15. Ra1 {[%clk 0:02:40]}
15... fxe4 {[%clk 0:02:42.4]} 16. Nxe4 {[%clk 0:02:38.5]} 16... Bf5 {[%clk
0:02:41.6]} 17. Rxa8 {[%clk 0:02:31.4]} 17... Qxa8 {[%clk 0:02:42.5]} 18. Nfd2
{[%clk 0:02:31.7]} 18... Qa2 {[%clk 0:02:38.1]} 19. f3 {[%clk 0:02:26]} 19...
Nf4 {[%clk 0:02:35.5]} 20. Qe3 {[%clk 0:02:25.8]} 20... Nxd5 {[%clk 0:02:24.8]}
21. Qb3 {[%clk 0:02:20.2]} 21... Qxb3 {[%clk 0:02:23.3]} 22. Nxb3 {[%clk
0:02:21.1]} 22... Bxe4 {[%clk 0:02:23.8]} 23. fxe4 {[%clk 0:02:19.8]} 23...
Rxf1+ {[%clk 0:02:24.7]} 24. Kxf1 {[%clk 0:02:17.2]} 24... Nxb4 {[%clk
0:02:25.6]} 25. cxd6 {[%clk 0:02:15.8]} 25... cxd6 {[%clk 0:02:25.2]} 26. Na5
{[%clk 0:02:15.6]} 26... b5 {[%clk 0:01:50.9]} 27. Nb7 {[%clk 0:02:13.8]} 27...
d5 {[%clk 0:01:12.5]} 28. Nd6 {[%clk 0:02:13.7]} 28... d4 {[%clk 0:01:12.5]} 29.
Nxb5 {[%clk 0:02:13.7]} 29... Kf7 {[%clk 0:01:12.9]} 30. Ke2 {[%clk 0:02:12.1]}
30... Ke6 {[%clk 0:01:11.5]} 31. Na3 {[%clk 0:02:10.5]} 31... Na6 {[%clk
0:01:10.8]} 32. h4 {[%clk 0:02:07.7]} 32... Nc5 {[%clk 0:01:10.2]} 33. Kf3
{[%clk 0:02:07.9]} 33... h5 {[%clk 0:01:08.7]} 34. Nc4 {[%clk 0:02:06.2]} 34...
g6 {[%clk 0:01:08.5]} 35. g3 {[%clk 0:02:04.4]} 35... Nb3 {[%clk 0:01:08.6]} 36.
g4 {[%clk 0:02:02]} 36... hxg4+ {[%clk 0:01:01.9]} 37. Kxg4 {[%clk 0:02:02.9]}
37... Nc5 {[%clk 0:00:56.2]} 38. Kg5 {[%clk 0:01:59.8]} 38... Nxe4+ {[%clk
0:00:54.5]} 39. Kxg6 {[%clk 0:01:59]} 39... Kd5 {[%clk 0:00:45.5]} 40. Nb2
{[%clk 0:01:55.6]} 40... Ng3 {[%clk 0:00:26.8]} 41. h5 {[%clk 0:01:54]} 41...
Nxh5 {[%clk 0:00:26.7]} 42. Kxh5 {[%clk 0:01:54.9]} 42... e4 {[%clk 0:00:27]}
43. Kg4 {[%clk 0:01:53.3]} 43... d3 {[%clk 0:00:25.7]} 44. Kf4 {[%clk
0:01:49.8]} 44... Kd4 {[%clk 0:00:22.1]} 45. Nd1 {[%clk 0:01:49.7]} 45... d2
{[%clk 0:00:22.3]} 46. Kg3 {[%clk 0:01:49.7]} 46... Kd3 {[%clk 0:00:19.7]} 47.
Kf2 {[%clk 0:01:48.3]} 47... Kc2 {[%clk 0:00:20]} 48. Ke2 {[%clk 0:01:46.5]}
48... Kc1 {[%clk 0:00:20.2]} 49. Ne3 {[%clk 0:01:44.7]} 49... d1=Q+ {[%clk
0:00:20.3]} 50. Nxd1 {[%clk 0:01:44.8]} 50... e3 {[%clk 0:00:21.2]} 51. Nxe3
{[%clk 0:01:44.5]} 1/2-1/2

[Event "*** Titled Tuesday Blitz"]
[Site "Chess.com"]
[Date "2020.04.28"]
[Round "9"]
[White "Durarbayli"]
[Black "Tapuah"]
[Result "1-0"]
[WhiteElo "2813"]
[BlackElo "2837"]
[TimeControl "180+1"]
[EndTime "11:45:20 PDT"]
[Termination "Durarbayli won by resignation"]

1. e4 {[%clk 0:03:00.9]} 1... c5 {[%clk 0:02:59.2]} 2. b3 {[%clk 0:03:00.9]}
2... Nf6 {[%clk 0:02:55.1]} 3. e5 {[%clk 0:02:59.3]} 3... Nd5 {[%clk 0:02:55]}
4. Bb2 {[%clk 0:02:59]} 4... Nc6 {[%clk 0:02:54.9]} 5. Nf3 {[%clk 0:02:57.9]}
5... d6 {[%clk 0:02:53.8]} 6. Bb5 {[%clk 0:02:55.5]} 6... Bd7 {[%clk 0:02:44.9]}
7. exd6 {[%clk 0:02:52.5]} 7... exd6 {[%clk 0:02:38.9]} 8. O-O {[%clk
0:02:51.9]} 8... Qb6 {[%clk 0:02:17.3]} 9. Re1+ {[%clk 0:02:48.6]} 9... Be7
{[%clk 0:02:08.8]} 10. Na3 {[%clk 0:02:22]} 10... a6 {[%clk 0:01:49.8]} 11. Bxc6
{[%clk 0:02:02]} 11... Qxc6 {[%clk 0:01:47.2]} 12. c4 {[%clk 0:01:33.7]} 12...
Nf4 {[%clk 0:01:32.6]} 13. d4 {[%clk 0:01:27.6]} 13... Bg4 {[%clk 0:01:32.1]}
14. d5 {[%clk 0:01:23.2]} 14... Qd7 {[%clk 0:01:30.1]} 15. Qd2 {[%clk
0:00:59.7]} 15... Qf5 {[%clk 0:01:19.5]} 16. Qc3 {[%clk 0:00:21]} 16... f6
{[%clk 0:01:00]} 17. Nc2 {[%clk 0:00:18.7]} 17... Bxf3 {[%clk 0:00:53.3]} 18.
Qxf3 {[%clk 0:00:15.4]} 18... Qxc2 {[%clk 0:00:52.3]} 19. Qxf4 {[%clk
0:00:15.7]} 19... Qxb2 {[%clk 0:00:52.4]} 20. Qxd6 {[%clk 0:00:15.5]} 20... O-O
{[%clk 0:00:46.2]} 21. Qxe7 {[%clk 0:00:15.3]} 21... Rae8 {[%clk 0:00:45.1]} 22.
Qxe8 {[%clk 0:00:15.1]} 22... Rxe8 {[%clk 0:00:44.4]} 23. Rxe8+ {[%clk 0:00:16]}
23... Kf7 {[%clk 0:00:44.9]} 24. Ree1 {[%clk 0:00:16.4]} 24... b5 {[%clk
0:00:41.4]} 25. Rad1 {[%clk 0:00:14.6]} 25... bxc4 {[%clk 0:00:41]} 26. bxc4
{[%clk 0:00:15.5]} 1-0

[Event "*** Titled Tuesday Blitz"]
[Site "Chess.com"]
[Date "2020.04.28"]
[Round "9"]
[White "Vaathi_Coming"]
[Black "ManuDavid2910"]
[Result "1-0"]
[WhiteElo "2856"]
[BlackElo "2646"]
[TimeControl "180+1"]
[EndTime "11:45:20 PDT"]
[Termination "Vaathi_Coming won by resignation"]

1. Nc3 {[%clk 0:03:00.9]} 1... c5 {[%clk 0:02:57.6]} 2. e4 {[%clk 0:03:01.8]}
2... Nc6 {[%clk 0:02:57.8]} 3. Bb5 {[%clk 0:03:01]} 3... g6 {[%clk 0:02:56.9]}
4. Bxc6 {[%clk 0:02:59.4]} 4... bxc6 {[%clk 0:02:57.8]} 5. f4 {[%clk 0:02:58.7]}
5... Bg7 {[%clk 0:02:58]} 6. Nf3 {[%clk 0:02:59.3]} 6... Ba6 {[%clk 0:02:58.2]}
7. d3 {[%clk 0:02:59.4]} 7... d5 {[%clk 0:02:57.1]} 8. O-O {[%clk 0:02:59.3]}
8... Bxc3 {[%clk 0:02:56.4]} 9. bxc3 {[%clk 0:02:56.6]} 9... dxe4 {[%clk
0:02:56.5]} 10. Ne5 {[%clk 0:02:54.3]} 10... exd3 {[%clk 0:02:56.5]} 11. cxd3
{[%clk 0:02:55.2]} 11... f6 {[%clk 0:02:50.2]} 12. Nc4 {[%clk 0:02:16]} 12...
Nh6 {[%clk 0:02:41]} 13. Be3 {[%clk 0:02:13.7]} 13... Qd5 {[%clk 0:02:34.3]} 14.
Nb2 {[%clk 0:02:07.3]} 14... Nf5 {[%clk 0:02:28.6]} 15. Bf2 {[%clk 0:02:07.6]}
15... h5 {[%clk 0:02:25.5]} 16. c4 {[%clk 0:02:07.7]} 16... Qd6 {[%clk
0:02:25.1]} 17. Na4 {[%clk 0:02:06.5]} 17... Qxf4 {[%clk 0:02:18.9]} 18. Nxc5
{[%clk 0:02:06.1]} 18... Bc8 {[%clk 0:02:18]} 19. Qa4 {[%clk 0:02:03.7]} 19...
Qc7 {[%clk 0:02:08]} 20. Rae1 {[%clk 0:01:56.5]} 20... O-O {[%clk 0:02:07.4]}
21. d4 {[%clk 0:01:57.1]} 21... Rd8 {[%clk 0:02:03.5]} 22. Re4 {[%clk
0:01:55.4]} 22... a5 {[%clk 0:01:50.6]} 23. Rfe1 {[%clk 0:01:54.3]} 23... Rb8
{[%clk 0:01:49.6]} 24. Qc2 {[%clk 0:01:37.6]} 24... Kf7 {[%clk 0:01:44.7]} 25.
Qc3 {[%clk 0:01:26.1]} 25... h4 {[%clk 0:01:30.7]} 26. Bxh4 {[%clk 0:01:24.6]}
26... Rh8 {[%clk 0:01:29.9]} 27. Bg3 {[%clk 0:01:24.3]} 27... Qa7 {[%clk
0:01:23]} 28. Bxb8 {[%clk 0:01:22]} 28... Qxb8 {[%clk 0:01:23.9]} 29. h3 {[%clk
0:01:14.8]} 29... Re8 {[%clk 0:01:13.3]} 30. Qxa5 {[%clk 0:00:39.3]} 30... Nd6
{[%clk 0:01:12.2]} 31. R4e2 {[%clk 0:00:34.7]} 31... Nxc4 {[%clk 0:01:10.5]} 32.
Qa4 {[%clk 0:00:34.7]} 32... Nd6 {[%clk 0:00:57.2]} 33. Qxc6 {[%clk 0:00:34.4]}
33... Qb4 {[%clk 0:00:52.8]} 34. Qd5+ {[%clk 0:00:34.2]} 34... Kg7 {[%clk
0:00:51.8]} 35. Rxe7+ {[%clk 0:00:33.9]} 35... Kh6 {[%clk 0:00:47.6]} 36. Qxd6
{[%clk 0:00:33.6]} 1-0

[Event "*** Titled Tuesday Blitz"]
[Site "Chess.com"]
[Date "2020.04.28"]
[Round "9"]
[White "dukicz123"]
[Black "1977Ivan"]
[Result "0-1"]
[WhiteElo "2498"]
[BlackElo "2647"]
[TimeControl "180+1"]
[EndTime "11:45:23 PDT"]
[Termination "1977Ivan won by resignation"]

1. e4 {[%clk 0:03:00.9]} 1... c5 {[%clk 0:02:59.1]} 2. Nf3 {[%clk 0:03:01.2]}
2... e6 {[%clk 0:02:59]} 3. d4 {[%clk 0:03:01.7]} 3... cxd4 {[%clk 0:02:59.2]}
4. Nxd4 {[%clk 0:03:02.6]} 4... Nc6 {[%clk 0:02:59.7]} 5. Nc3 {[%clk 0:03:02.6]}
5... Qc7 {[%clk 0:03:00]} 6. Be3 {[%clk 0:03:03]} 6... a6 {[%clk 0:02:59.9]} 7.
Qd2 {[%clk 0:03:03.5]} 7... Nf6 {[%clk 0:02:59]} 8. O-O-O {[%clk 0:03:04.1]}
8... Bb4 {[%clk 0:02:59.5]} 9. f3 {[%clk 0:03:04.4]} 9... O-O {[%clk 0:02:58.2]}
10. g4 {[%clk 0:02:57.8]} 10... b5 {[%clk 0:02:58.6]} 11. Kb1 {[%clk 0:02:53.3]}
11... Bb7 {[%clk 0:02:51.4]} 12. Rg1 {[%clk 0:02:39.5]} 12... Ne5 {[%clk
0:02:47.6]} 13. g5 {[%clk 0:02:37.2]} 13... Nh5 {[%clk 0:02:30.9]} 14. f4 {[%clk
0:02:31]} 14... Nc4 {[%clk 0:02:29.5]} 15. Bxc4 {[%clk 0:02:29.7]} 15... Qxc4
{[%clk 0:02:29.5]} 16. a3 {[%clk 0:02:06.1]} 16... Bxc3 {[%clk 0:02:28.6]} 17.
Qxc3 {[%clk 0:02:00.8]} 17... Qxc3 {[%clk 0:02:27.6]} 18. bxc3 {[%clk
0:02:01.7]} 18... Bxe4 {[%clk 0:02:27.8]} 19. Nb3 {[%clk 0:01:54.1]} 19... d5
{[%clk 0:02:23.2]} 20. Nc5 {[%clk 0:01:54.5]} 20... Bf5 {[%clk 0:02:19.6]} 21.
Kb2 {[%clk 0:01:37.8]} 21... Rfc8 {[%clk 0:02:19]} 22. Ra1 {[%clk 0:01:34.4]}
22... Nxf4 {[%clk 0:02:16.7]} 23. Bxf4 {[%clk 0:01:28.3]} 23... Rxc5 {[%clk
0:02:15.6]} 24. Be5 {[%clk 0:01:28.9]} 24... Rc4 {[%clk 0:02:12.9]} 25. Bd4
{[%clk 0:01:28]} 25... Rac8 {[%clk 0:02:10.8]} 26. Rg2 {[%clk 0:01:26.9]} 26...
a5 {[%clk 0:01:56.3]} 27. Rd1 {[%clk 0:01:12.7]} 27... Be4 {[%clk 0:01:49.1]}
28. Rf2 {[%clk 0:01:08.7]} 28... b4 {[%clk 0:01:42.7]} 29. axb4 {[%clk 0:01:09]}
29... axb4 {[%clk 0:01:43.2]} 30. cxb4 {[%clk 0:01:09.4]} 30... Rxb4+ {[%clk
0:01:42.9]} 31. Kc1 {[%clk 0:01:08.4]} 31... Rbc4 {[%clk 0:01:39.5]} 32. c3
{[%clk 0:01:06.3]} 32... h5 {[%clk 0:01:33.4]} 33. gxh6 {[%clk 0:01:03.4]} 33...
gxh6 {[%clk 0:01:33.6]} 34. Kd2 {[%clk 0:00:49.7]} 34... Bg6 {[%clk 0:01:26.6]}
35. Ke3 {[%clk 0:00:48.1]} 35... Kf8 {[%clk 0:01:22.9]} 36. Kf4 {[%clk
0:00:41.9]} 36... Ke7 {[%clk 0:01:22.1]} 37. Ke5 {[%clk 0:00:42.1]} 37... Rxc3
{[%clk 0:01:16.3]} 38. Bxc3 {[%clk 0:00:39.2]} 38... Rxc3 {[%clk 0:01:16.7]} 39.
Ra1 {[%clk 0:00:37.6]} 39... Re3+ {[%clk 0:01:15.9]} 40. Kd4 {[%clk 0:00:37.5]}
40... Re4+ {[%clk 0:01:16.2]} 41. Kc5 {[%clk 0:00:38.1]} 41... Rc4+ {[%clk
0:01:15.6]} 42. Kb5 {[%clk 0:00:37.2]} 42... Kd6 {[%clk 0:01:14.3]} 43. Re2
{[%clk 0:00:31.3]} 43... Be4 {[%clk 0:01:11.9]} 44. Rae1 {[%clk 0:00:24.8]}
44... f5 {[%clk 0:01:11.2]} 45. Rg1 {[%clk 0:00:24.7]} 45... f4 {[%clk
0:01:10.4]} 46. Rg6 {[%clk 0:00:24.7]} 0-1

[Event "*** Titled Tuesday Blitz"]
[Site "Chess.com"]
[Date "2020.04.28"]
[Round "9"]
[White "swimmerchess"]
[Black "IMTominho"]
[Result "1-0"]
[WhiteElo "2866"]
[BlackElo "2815"]
[TimeControl "180+1"]
[EndTime "11:45:25 PDT"]
[Termination "swimmerchess won by resignation"]

1. e4 {[%clk 0:03:00.9]} 1... e5 {[%clk 0:02:58]} 2. Nf3 {[%clk 0:03:01.1]} 2...
Nf6 {[%clk 0:02:54.6]} 3. Nxe5 {[%clk 0:03:00.5]} 3... d6 {[%clk 0:02:54.6]} 4.
Nf3 {[%clk 0:03:00.8]} 4... Nxe4 {[%clk 0:02:54.6]} 5. Bd3 {[%clk 0:03:01.3]}
5... Nf6 {[%clk 0:02:54.4]} 6. O-O {[%clk 0:03:00.9]} 6... Be7 {[%clk
0:02:54.9]} 7. c3 {[%clk 0:03:00.8]} 7... O-O {[%clk 0:02:55.1]} 8. Bc2 {[%clk
0:03:01.4]} 8... b6 {[%clk 0:02:55.7]} 9. d4 {[%clk 0:03:00.9]} 9... Bb7 {[%clk
0:02:56.1]} 10. Re1 {[%clk 0:02:59.8]} 10... Nbd7 {[%clk 0:02:55.8]} 11. Bg5
{[%clk 0:02:59.2]} 11... Re8 {[%clk 0:02:53.2]} 12. Nbd2 {[%clk 0:02:59.2]}
12... Bf8 {[%clk 0:02:49.2]} 13. Bf5 {[%clk 0:02:54.4]} 13... Rxe1+ {[%clk
0:02:38.2]} 14. Qxe1 {[%clk 0:02:53.5]} 14... Be7 {[%clk 0:02:36.6]} 15. Qe2
{[%clk 0:02:49.4]} 15... h6 {[%clk 0:02:35.2]} 16. Re1 {[%clk 0:02:48.8]} 16...
Bf8 {[%clk 0:02:33.8]} 17. Bh4 {[%clk 0:02:38.9]} 17... Qb8 {[%clk 0:02:24.4]}
18. c4 {[%clk 0:02:31.1]} 18... g6 {[%clk 0:02:21]} 19. Bb1 {[%clk 0:02:24]}
19... Bg7 {[%clk 0:02:19.6]} 20. d5 {[%clk 0:02:22.9]} 20... b5 {[%clk
0:02:15.8]} 21. b3 {[%clk 0:02:20.3]} 21... bxc4 {[%clk 0:02:15.4]} 22. bxc4
{[%clk 0:02:21.2]} 22... Ba6 {[%clk 0:02:08.1]} 23. Bd3 {[%clk 0:02:05.9]} 23...
Qb2 {[%clk 0:02:05.4]} 24. Nb3 {[%clk 0:01:55.4]} 24... Qxe2 {[%clk 0:02:01.8]}
25. Bxe2 {[%clk 0:01:56]} 25... Ne4 {[%clk 0:01:57.4]} 26. Bf1 {[%clk
0:01:52.2]} 26... f5 {[%clk 0:01:56.7]} 27. Nfd4 {[%clk 0:01:47.2]} 27... Ndc5
{[%clk 0:01:38.4]} 28. f3 {[%clk 0:01:24.1]} 28... Nc3 {[%clk 0:01:17.5]} 29.
Re7 {[%clk 0:01:17.2]} 29... Rc8 {[%clk 0:01:06.8]} 30. Nc6 {[%clk 0:01:12.4]}
30... Bf8 {[%clk 0:00:58.4]} 31. Nxc5 {[%clk 0:01:07.3]} 31... dxc5 {[%clk
0:00:56.2]} 32. Re6 {[%clk 0:01:07.9]} 32... g5 {[%clk 0:00:49.8]} 33. Be1
{[%clk 0:01:03.4]} 33... Nxa2 {[%clk 0:00:30.8]} 34. Nxa7 {[%clk 0:01:03.3]}
34... Bb7 {[%clk 0:00:21.4]} 35. Nxc8 {[%clk 0:01:02.7]} 35... Bxc8 {[%clk
0:00:22.3]} 36. Re8 {[%clk 0:01:00.2]} 36... Bd7 {[%clk 0:00:21]} 37. Rd8 {[%clk
0:00:58.2]} 37... Ba4 {[%clk 0:00:20.6]} 38. Ra8 {[%clk 0:00:58.2]} 38... Bb3
{[%clk 0:00:20.3]} 39. Ra3 {[%clk 0:00:58.5]} 39... Nc1 {[%clk 0:00:20.2]} 40.
Bd2 {[%clk 0:00:59]} 1-0